fUSD/lending_fUSD_20260617
["ID","MTS","AMOUNT","RATE_DAILY","PERIOD"]
[425257463,1781634722000,-151.0,0.00037,30]
[425257460,1781634722000,-290.2149,0.00037,30]
[425257464,1781634722000,-290.2149,0.00037,30]
[425257462,1781634722000,-290.2149,0.00037,30]
[425257465,1781634722000,-151.0,0.00037,30]
[425257461,1781634722000,-151.0,0.00037,30]
[425257467,1781634722000,-234.635032,0.00037,30]
[425257466,1781634722000,-440.458877,0.00037,30]
[425257469,1781634722000,-440.458877,0.00037,30]
[425257468,1781634722000,-300.517851,0.00037,30]
[425257470,1781634722000,-234.635032,0.00037,30]
[425257411,1781634722000,-477.74728631,0.00037,30]
[425257459,1781634722000,-290.2149,0.00037,30]
[425257449,1781634722000,-400.0,0.00037,30]
[425257457,1781634722000,-151.0,0.00037,30]
[425257441,1781634722000,-165.495048,0.00037,30]
[425257443,1781634722000,-400.0,0.00037,30]
[425257414,1781634722000,-477.74728631,0.00037,30]
[425257412,1781634722000,-477.74728631,0.00037,30]
[425257422,1781634722000,-477.74728631,0.00037,30]
[425257418,1781634722000,-477.74728631,0.00037,30]
[425257421,1781634722000,-477.74728631,0.00037,30]
[425257425,1781634722000,-184.774407,0.00037,30]
[425257426,1781634722000,-184.774407,0.00037,30]
[425257427,1781634722000,-184.774399,0.00037,30]
[425257419,1781634722000,-477.74728631,0.00037,30]
[425257420,1781634722000,-477.74728631,0.00037,30]
[425257423,1781634722000,-477.74728631,0.00037,30]
[425257428,1781634722000,-151.0,0.00037,30]
[425257424,1781634722000,-184.774407,0.00037,30]
[425257410,1781634722000,-477.74728631,0.00037,30]
[425257439,1781634722000,-500.0,0.00037,30]
[425257417,1781634722000,-477.74728631,0.00037,30]
[425257437,1781634722000,-168.132544,0.00037,30]
[425257433,1781634722000,-168.132544,0.00037,30]
[425257440,1781634722000,-168.132548,0.00037,30]
[425257438,1781634722000,-165.495048,0.00037,30]
[425257436,1781634722000,-500.0,0.00037,30]
[425257432,1781634722000,-166.285841,0.00037,30]
[425257435,1781634722000,-168.132544,0.00037,30]
[425257431,1781634722000,-166.28585,0.00037,30]
[425257430,1781634722000,-166.28585,0.00037,30]
[425257429,1781634722000,-166.28585,0.00037,30]
[425257434,1781634722000,-500.0,0.00037,30]
[425257507,1781634723000,-210.676342,0.00037,30]
[425257506,1781634723000,-152.421613,0.00037,30]
[425257509,1781634723000,-210.676342,0.00037,30]
[425257534,1781634723000,-150.0,0.00037125,120]
[425257508,1781634723000,-210.676342,0.00037,30]
[425257501,1781634723000,-291.872511,0.00037,30]
[425257511,1781634723000,-561.281623,0.00037,30]
[425257505,1781634723000,-291.872503,0.00037,30]
[425257502,1781634723000,-291.872511,0.00037,30]
[425257503,1781634723000,-291.872511,0.00037,30]
[425257504,1781634723000,-151.0,0.00037,30]
[425257510,1781634723000,-210.676345,0.00037,30]
[425257513,1781634723000,-561.281623,0.00037,30]
[425257517,1781634723000,-5000.0,0.00037,120]
[425257522,1781634723000,-390.32157646,0.00037041,120]
[425257512,1781634723000,-561.281623,0.00037,30]
[425257516,1781634723000,-1000.0,0.00037,60]
[425257515,1781634723000,-2000.0,0.00037,7]
[425257514,1781634723000,-561.28162,0.00037,30]
[425257520,1781634723000,-1000.0,0.0003704,60]
[425257519,1781634723000,-1000.0,0.00037013,120]
[425257518,1781634723000,-1259.0,0.00037,7]
[425257524,1781634723000,-609.33872535,0.00037041,120]
[425257523,1781634723000,-479.66201636,0.00037041,120]
[425257530,1781634723000,-1000.0,0.00037095,120]
[425257526,1781634723000,-530.40504091,0.00037041,120]
[425257521,1781634723000,-1000.0,0.00037041,120]
[425257498,1781634723000,-227.49726,0.00037,30]
[425257471,1781634723000,-636.872775,0.00037,30]
[425257494,1781634723000,-500.0,0.00037,30]
[425257472,1781634723000,-300.517851,0.00037,30]
[425257474,1781634723000,-440.458877,0.00037,30]
[425257475,1781634723000,-151.0,0.00037,30]
[425257476,1781634723000,-234.635032,0.00037,30]
[425257473,1781634723000,-319.326811,0.00037,30]
[425257478,1781634723000,-300.517851,0.00037,30]
[425257477,1781634723000,-636.872775,0.00037,30]
[425257479,1781634723000,-319.326811,0.00037,30]
[425257489,1781634723000,-227.497261,0.00037,30]
[425257488,1781634723000,-500.0,0.00037,30]
[425257480,1781634723000,-440.458875,0.00037,30]
[425257484,1781634723000,-300.517843,0.00037,30]
[425257499,1781634723000,-339.48407407,0.00037,30]
[425257483,1781634723000,-636.872775,0.00037,30]
[425257485,1781634723000,-319.326811,0.00037,30]
[425257486,1781634723000,-636.872784,0.00037,30]
[425257481,1781634723000,-151.0,0.00037,30]
[425257487,1781634723000,-319.326808,0.00037,30]
[425257490,1781634723000,-339.484082,0.00037,30]
[425257493,1781634723000,-339.484082,0.00037,30]
[425257492,1781634723000,-227.497261,0.00037,30]
[425257491,1781634723000,-500.0,0.00037,30]
[425257500,1781634723000,-151.0,0.00037,30]
[425257495,1781634723000,-227.497261,0.00037,30]
[425257497,1781634723000,-500.0,0.00037,30]
[425257496,1781634723000,-339.484082,0.00037,30]
[425257482,1781634723000,-234.635026,0.00037,30]
[425257529,1781634723000,-534.655673,0.0003708,120]
[425257550,1781634723000,-564.5054,0.00037126,60]
[425257525,1781634723000,-500.0,0.00037041,120]
[425257560,1781634723000,-1294.96,0.00037142,5]
[425257563,1781634723000,-1000.0,0.00037178,120]
[425257564,1781634723000,-684.61334079,0.0003719,60]
[425257572,1781634723000,-400.0,0.0003721,2]
[425257562,1781634723000,-204.0,0.0003715,120]
[425257569,1781634723000,-400.0,0.0003721,2]
[425257568,1781634723000,-400.0,0.0003721,2]
[425257567,1781634723000,-400.0,0.0003721,2]
[425257565,1781634723000,-2000.0,0.000372,7]
[425257566,1781634723000,-1000.0,0.00037205,120]
[425257570,1781634723000,-400.0,0.0003721,2]
[425257577,1781634723000,-400.0,0.0003721,2]
[425257561,1781634723000,-1000.0,0.0003715,120]
[425257576,1781634723000,-400.0,0.0003721,2]
[425257575,1781634723000,-400.0,0.0003721,2]
[425257573,1781634723000,-400.0,0.0003721,2]
[425257580,1781634723000,-400.0,0.0003721,2]
[425257579,1781634723000,-400.0,0.0003721,2]
[425257574,1781634723000,-400.0,0.0003721,2]
[425257582,1781634723000,-400.0,0.0003721,2]
[425257584,1781634723000,-400.0,0.0003721,2]
[425257583,1781634723000,-400.0,0.0003721,2]
[425257581,1781634723000,-400.0,0.0003721,2]
[425257586,1781634723000,-400.0,0.0003721,2]
[425257585,1781634723000,-400.0,0.0003721,2]
[425257587,1781634723000,-400.0,0.0003721,2]
[425257578,1781634723000,-400.0,0.0003721,2]
[425257571,1781634723000,-400.0,0.0003721,2]
[425257528,1781634723000,-7208.95,0.00037071,2]
[425257559,1781634723000,-152.0,0.00037136,14]
[425257558,1781634723000,-1000.0,0.00037133,60]
[425257532,1781634723000,-5898.23441368,0.00037099,9]
[425257531,1781634723000,-1000.0,0.00037097,60]
[425257527,1781634723000,-1000.0,0.00037068,120]
[425257535,1781634723000,-150.0,0.00037125,120]
[425257536,1781634723000,-204.0,0.00037125,120]
[425257546,1781634723000,-564.5054,0.00037126,60]
[425257547,1781634723000,-564.5054,0.00037126,60]
[425257538,1781634723000,-564.5054,0.00037126,60]
[425257544,1781634723000,-564.5054,0.00037126,60]
[425257543,1781634723000,-564.5054,0.00037126,60]
[425257540,1781634723000,-564.5054,0.00037126,60]
[425257542,1781634723000,-564.5054,0.00037126,60]
[425257533,1781634723000,-1000.0,0.00037123,120]
[425257545,1781634723000,-564.5054,0.00037126,60]
[425257537,1781634723000,-204.0,0.00037125,120]
[425257557,1781634723000,-564.50572126,0.00037126,60]
[425257556,1781634723000,-564.5054,0.00037126,60]
[425257553,1781634723000,-564.5054,0.00037126,60]
[425257549,1781634723000,-564.5054,0.00037126,60]
[425257555,1781634723000,-564.5054,0.00037126,60]
[425257554,1781634723000,-564.5054,0.00037126,60]
[425257551,1781634723000,-564.5054,0.00037126,60]
[425257548,1781634723000,-564.5054,0.00037126,60]
[425257541,1781634723000,-564.5054,0.00037126,60]
[425257539,1781634723000,-564.5054,0.00037126,60]
[425257552,1781634723000,-564.5054,0.00037126,60]
[425257624,1781634724000,-908.0,0.00037336,14]
[425257625,1781634724000,-253.05,0.00037342,120]
[425257626,1781634724000,-1000.0,0.00037342,120]
[425257622,1781634724000,-1000.0,0.00037315,120]
[425257621,1781634724000,-150.0,0.00037299,120]
[425257611,1781634724000,-158.25033973,0.00037233,3]
[425257620,1781634724000,-500.0,0.00037298,30]
[425257613,1781634724000,-1173.29,0.00037261,30]
[425257619,1781634724000,-500.0,0.00037297,30]
[425257623,1781634724000,-2849.0,0.00037319,58]
[425257629,1781634724000,-1403.18578127,0.00037364,7]
[425257627,1781634724000,-250.0,0.00037342,44]
[425257630,1781634724000,-1399.07948647,0.00037364,7]
[425257631,1781634724000,-1587.29374837,0.00037364,7]
[425257635,1781634724000,-159.04856,0.00037364,30]
[425257634,1781634724000,-159.04856,0.00037364,30]
[425257641,1781634724000,-400.0,0.0003737,2]
[425257633,1781634724000,-159.04856,0.00037364,30]
[425257642,1781634724000,-1407.08933097,0.00037375,7]
[425257640,1781634724000,-400.0,0.0003737,2]
[425257638,1781634724000,-1000.0,0.00037369,120]
[425257632,1781634724000,-2164.38775853,0.00037364,7]
[425257612,1781634724000,-1000.0,0.0003726,120]
[425257628,1781634724000,-250.0,0.00037342,44]
[425257618,1781634724000,-1000.0,0.00037287,120]
[425257607,1781634724000,-400.0,0.0003721,2]
[425257617,1781634724000,-723.0,0.00037282,13]
[425257596,1781634724000,-400.0,0.0003721,2]
[425257589,1781634724000,-400.0,0.0003721,2]
[425257588,1781634724000,-400.0,0.0003721,2]
[425257590,1781634724000,-400.0,0.0003721,2]
[425257592,1781634724000,-400.0,0.0003721,2]
[425257594,1781634724000,-400.0,0.0003721,2]
[425257591,1781634724000,-400.0,0.0003721,2]
[425257593,1781634724000,-400.0,0.0003721,2]
[425257595,1781634724000,-400.0,0.0003721,2]
[425257598,1781634724000,-400.0,0.0003721,2]
[425257599,1781634724000,-400.0,0.0003721,2]
[425257600,1781634724000,-400.0,0.0003721,2]
[425257603,1781634724000,-400.0,0.0003721,2]
[425257637,1781634724000,-204.086454,0.00037364,30]
[425257597,1781634724000,-400.0,0.0003721,2]
[425257605,1781634724000,-400.0,0.0003721,2]
[425257604,1781634724000,-400.0,0.0003721,2]
[425257606,1781634724000,-400.0,0.0003721,2]
[425257601,1781634724000,-400.0,0.0003721,2]
[425257602,1781634724000,-400.0,0.0003721,2]
[425257608,1781634724000,-400.0,0.0003721,2]
[425257614,1781634724000,-1552.07,0.00037261,30]
[425257616,1781634724000,-592.05,0.00037261,120]
[425257615,1781634724000,-1156.93,0.00037261,30]
[425257609,1781634724000,-278.95,0.0003721,60]
[425257610,1781634724000,-1000.0,0.00037232,120]
[425257639,1781634724000,-1001.0,0.0003737,120]
[425257636,1781634724000,-159.04856,0.00037364,30]
[425257646,1781634724000,-693.39197629,0.00037377,2]
[425257674,1781634724000,-950.46242439,0.000374,2]
[425257677,1781634724000,-466.59489816,0.000374,2]
[425257676,1781634724000,-2000.0,0.000374,7]
[425257675,1781634724000,-195.042,0.000374,36]
[425257689,1781634724000,-177707.45538496,0.00037483,11]
[425257680,1781634724000,-519.80465134,0.00037414,30]
[425257679,1781634724000,-6078.0,0.00037403,2]
[425257678,1781634724000,-466.59489816,0.000374,2]
[425257683,1781634724000,-150.0,0.00037449,2]
[425257682,1781634724000,-1000.0,0.00037449,2]
[425257687,1781634724000,-150.0,0.0003746,120]
[425257684,1781634724000,-150.0,0.00037449,2]
[425257685,1781634724000,-500.0,0.00037449,2]
[425257686,1781634724000,-191.54188075,0.00037454,33]
[425257681,1781634724000,-1389.29321247,0.00037415,7]
[425257688,1781634724000,-150.0,0.00037469,120]
[425257690,1781634724000,-2000.0,0.00030825,2]
[425257691,1781634724000,-1382.607938,0.00032877,7]
[425257693,1781634724000,-279.98838843,0.00037483,11]
[425257643,1781634724000,-8560.0,0.00037375,10]
[425257694,1781634724000,-487.04,0.00037483,11]
[425257696,1781634724000,-576.0677968,0.00037483,11]
[425257692,1781634724000,-35881.01828453,0.00037483,11]
[425257697,1781634724000,-1000.0,0.00037483,11]
[425257698,1781634724000,-1500.0,0.00037483,11]
[425257673,1781634724000,-950.46242439,0.000374,2]
[425257667,1781634724000,-1000.0,0.000374,2]
[425257695,1781634724000,-150.8255162,0.0001474,2]
[425257671,1781634724000,-159.25147114,0.000374,4]
[425257672,1781634724000,-357.0,0.000374,2]
[425257644,1781634724000,-151.0,0.00037377,2]
[425257645,1781634724000,-804.17102365,0.00037377,2]
[425257647,1781634724000,-150.0,0.0003738,120]
[425257649,1781634724000,-90160.28458806,0.0003739,15]
[425257651,1781634724000,-150.0,0.00037397,120]
[425257648,1781634724000,-521.940665,0.0003738,120]
[425257653,1781634724000,-266.42,0.00037399,120]
[425257654,1781634724000,-253.96262018,0.00037399,120]
[425257652,1781634724000,-1034.87397556,0.00037397,120]
[425257660,1781634724000,-313.81097,0.00037399,89]
[425257664,1781634724000,-500.0,0.000374,60]
[425257650,1781634724000,-150.0,0.00037397,120]
[425257662,1781634724000,-200.0,0.000374,15]
[425257670,1781634724000,-500.0,0.000374,4]
[425257669,1781634724000,-2110.0,0.000374,2]
[425257666,1781634724000,-200.0,0.000374,60]
[425257668,1781634724000,-247.2,0.000374,2]
[425257663,1781634724000,-500.0,0.000374,60]
[425257659,1781634724000,-313.81097,0.00037399,89]
[425257658,1781634724000,-313.81097,0.00037399,89]
[425257657,1781634724000,-313.81097,0.00037399,89]
[425257661,1781634724000,-57624.28838718,0.000374,4]
[425257665,1781634724000,-700.0,0.000374,60]
[425257655,1781634724000,-313.81097,0.00037399,89]
[425257656,1781634724000,-313.81097,0.00037399,89]
[425257701,1781634725000,-535.04,0.00014999,2]
[425257699,1781634725000,-150.8255162,0.0001499,2]
[425257700,1781634725000,-150.8255162,0.0001499,2]
[425257703,1781634725000,-258.2689676,0.00014999,2]
[425257705,1781634725000,-535.04,0.00014999,2]
[425257702,1781634725000,-535.04,0.00014999,2]
[425257709,1781634725000,-246.00728822,0.00014999,2]
[425257707,1781634725000,-535.04,0.00014999,2]
[425257708,1781634725000,-289.03271178,0.00014999,2]
[425257706,1781634725000,-535.04,0.00014999,2]
[425257710,1781634725000,-81.45393289,0.00014999,2]
[425257704,1781634725000,-276.7710324,0.00014999,2]
[425257714,1781634726000,-535.06438124,0.00014999,2]
[425257712,1781634726000,-535.04,0.00014999,2]
[425257711,1781634726000,-453.58606711,0.00014999,2]
[425257713,1781634726000,-535.04,0.00014999,2]
[425257715,1781634726000,-500.0,0.00016437,2]
[425257717,1781634726000,-767.0,0.0002387,7]
[425257720,1781634726000,-8083.15978842,0.000299,2]
[425257719,1781634726000,-9186.75735307,0.000299,2]
[425257716,1781634726000,-152.0,0.00022033,7]
[425257723,1781634726000,-411.575731,0.00032877,7]
[425257718,1781634726000,-828.0,0.00025,2]
[425257729,1781634726000,1465.2436,0.00014614,2]
[425257721,1781634726000,-228.55383609,0.00030149,7]
[425257725,1781634726000,-676.366792,0.00032877,7]
[425257724,1781634726000,-1456.594552,0.00032877,7]
[425257726,1781634726000,-207.204999,0.00032877,7]
[425257727,1781634726000,-34.19197691,0.00032877,7]
[425257728,1781634726000,-427.87278049,0.00032877,7]
[425257722,1781634726000,-1464.40761991,0.00030149,7]
[425257730,1781634733000,293.44,0.00014187,2]
[425257731,1781634819000,340.01,0.00010204,2]
[425257733,1781634924000,490.49,0.00014187,2]
[425257734,1781634940000,302.12,9.599e-05,2]
[425257736,1781634940000,302.12,9.656e-05,2]
[425257735,1781634940000,302.12,9.629e-05,2]
[425257737,1781634941000,302.12,9.682e-05,2]
[425257740,1781634943000,302.12,9.751e-05,2]
[425257739,1781634943000,302.12,9.729e-05,2]
[425257738,1781634943000,302.12,9.706e-05,2]
[425257742,1781634944000,302.12,9.793e-05,2]
[425257741,1781634944000,302.12,9.773e-05,2]
[425257743,1781634945000,302.12,9.813e-05,2]
[425257744,1781634946000,302.12,9.832e-05,2]
[425257745,1781634947000,302.12,9.85e-05,2]
[425257746,1781634947000,166.66,0.00013477,2]
[425257752,1781634948000,302.12,9.886e-05,2]
[425257751,1781634948000,166.66,0.00014612,2]
[425257749,1781634948000,166.66,0.00014045,2]
[425257750,1781634948000,166.66,0.00014329,2]
[425257748,1781634948000,166.66,0.00013761,2]
[425257747,1781634948000,302.12,9.868e-05,2]
[425257753,1781634949000,302.12,9.903e-05,2]
[425257754,1781634950000,302.12,9.919e-05,2]
[425257755,1781634951000,302.12,9.935e-05,2]
[425257757,1781634952000,302.12,9.967e-05,2]
[425257756,1781634952000,302.12,9.951e-05,2]
[425257760,1781634955000,302.12,0.00010011,2]
[425257759,1781634955000,302.12,9.997e-05,2]
[425257758,1781634955000,302.12,9.982e-05,2]
[425257761,1781634956000,302.12,0.00010025,2]
[425257762,1781634956000,302.12,0.0001004,2]
[425257763,1781634957000,302.12,0.00010053,2]
[425257764,1781634958000,302.12,0.00010067,2]
[425257765,1781634959000,302.12,0.0001008,2]
[425257767,1781634960000,302.12,0.00010106,2]
[425257766,1781634960000,302.12,0.00010093,2]
[425257768,1781634961000,302.12,0.00010119,2]
[425257769,1781634962000,302.12,0.00010132,2]
[425257770,1781634963000,302.12,0.00010144,2]
[425257772,1781634964000,302.12,0.00010168,2]
[425257771,1781634964000,302.12,0.00010156,2]
[425257774,1781634966000,302.12,0.00010192,2]
[425257773,1781634966000,302.12,0.0001018,2]
[425257775,1781634967000,302.12,0.00010204,2]
[425257776,1781635094000,302.14,9.675e-05,2]
[425257777,1781635095000,302.14,9.855e-05,2]
[425257779,1781635095000,302.14,0.0001011,2]
[425257780,1781635095000,302.14,0.00010212,2]
[425257778,1781635095000,302.14,9.993e-05,2]
[425257781,1781635218000,302.19,0.00010214,2]
[425257786,1781635522000,233.14,0.00014668,2]
[425257787,1781635668000,151.0,0.00014542,2]
[425257788,1781635671000,151.0,0.00014542,2]
[425257789,1781635675000,151.0,0.00014542,2]
[425257790,1781635678000,151.0,0.00014542,2]
[425257819,1781635831000,-4474.24417822,0.00016437,2]
[425257806,1781635831000,-5624.03922809,0.0001499,3]
[425257808,1781635831000,-556.51,0.00014999,2]
[425257809,1781635831000,-166.66,0.00015467,2]
[425257813,1781635831000,-183.45,0.00015708,2]
[425257815,1781635831000,-255.0,0.00015917,2]
[425257814,1781635831000,-166.66,0.00015793,2]
[425257810,1781635831000,-150.0,0.00015618,2]
[425257817,1781635831000,-166.66,0.00016118,2]
[425257812,1781635831000,-530.74,0.00015618,2]
[425257807,1781635831000,-500.0,0.00014999,2]
[425257805,1781635831000,-297.20572407,0.0001499,3]
[425257802,1781635831000,-795.82007634,0.00014984,2]
[425257800,1781635831000,-500.0,0.00014899,2]
[425257804,1781635831000,-109.4326534,0.00014985,2]
[425257801,1781635831000,-2052.39120712,0.00014984,2]
[425257799,1781635831000,-1204.02085378,0.0001489,2]
[425257798,1781635831000,-36.77874622,0.0001489,2]
[425257797,1781635831000,-150.0,0.00014793,2]
[425257796,1781635831000,-160.0,0.00014748,2]
[425257795,1781635831000,-150.0,0.00014741,2]
[425257803,1781635831000,-40.5673466,0.00014985,2]
[425257816,1781635831000,-9999.99,0.00016116,2]
[425257811,1781635831000,-754.4,0.00015618,2]
[425257821,1781635831000,-230.84,0.00016438,2]
[425257839,1781635831000,-8989.17190118,0.00018332,2]
[425257818,1781635831000,-4723.8043,0.00016338,2]
[425257841,1781635831000,-500.0,0.00018399,2]
[425257843,1781635831000,-9952.89156055,0.000184,2]
[425257846,1781635831000,-1065.89003313,0.000184,2]
[425257837,1781635831000,-9136.6472792,0.000182,2]
[425257848,1781635831000,-9136.6472792,0.000184,2]
[425257838,1781635831000,-10166.23304835,0.000182,2]
[425257834,1781635831000,-200.0,0.00018171,2]
[425257835,1781635831000,-9952.89156055,0.000182,2]
[425257830,1781635831000,-900.0,0.0001731,2]
[425257833,1781635831000,-150.0,0.00017946,2]
[425257836,1781635831000,-1065.89003313,0.000182,2]
[425257831,1781635831000,-754.4,0.00017571,2]
[425257828,1781635831000,-948.815141,0.00017111,2]
[425257829,1781635831000,-433.0,0.0001713,2]
[425257820,1781635831000,-171.031884,0.00016438,2]
[425257827,1781635831000,-209.451527,0.00017108,2]
[425257825,1781635831000,-166.66,0.0001677,2]
[425257824,1781635831000,-168.44,0.00016712,2]
[425257822,1781635831000,-166.66,0.00016444,2]
[425257826,1781635831000,-166.66,0.00017095,2]
[425257823,1781635831000,-174.72,0.00016565,2]
[425257832,1781635831000,-530.74,0.00017571,2]
[425257886,1781635832000,-310.0,0.00019695,2]
[425257883,1781635832000,-10166.23304835,0.000195,2]
[425257885,1781635832000,-530.74,0.00019523,2]
[425257879,1781635832000,-10166.23304835,0.000194,2]
[425257882,1781635832000,-1065.89003313,0.000195,2]
[425257884,1781635832000,-754.4,0.00019523,2]
[425257881,1781635832000,-9136.6472792,0.000195,2]
[425257878,1781635832000,-9136.6472792,0.000194,2]
[425257887,1781635832000,-309.0,0.00019695,2]
[425257880,1781635832000,-9952.89156055,0.000195,2]
[425257889,1781635832000,-9136.6472792,0.000197,2]
[425257898,1781635832000,-9952.89156055,0.000199,2]
[425257891,1781635832000,-10166.23304835,0.000197,2]
[425257890,1781635832000,-1065.89003313,0.000197,2]
[425257892,1781635832000,-209.451527,0.000197,2]
[425257896,1781635832000,-1252.0,0.00019823,2]
[425257893,1781635832000,-948.815143,0.000197,2]
[425257894,1781635832000,-5000.0,0.00019724,5]
[425257895,1781635832000,-199.5,0.00019741,2]
[425257897,1781635832000,-500.0,0.00019899,2]
[425257902,1781635832000,-300.0,0.00019999,2]
[425257900,1781635832000,-1065.89003313,0.000199,2]
[425257876,1781635832000,-9952.89156055,0.000194,2]
[425257908,1781635832000,-200000.0,0.0002,2]
[425257899,1781635832000,-9136.6472792,0.000199,2]
[425257888,1781635832000,-9952.89156055,0.000197,2]
[425257875,1781635832000,-1948.13,0.00019339,2]
[425257865,1781635832000,-9952.89156055,0.00019,2]
[425257871,1781635832000,-9952.89156055,0.000192,2]
[425257903,1781635832000,-733.70159928,0.00019999,2]
[425257849,1781635832000,-10166.23304835,0.000184,2]
[425257850,1781635832000,-231.29270581,0.000184,2]
[425257852,1781635832000,-231.29270581,0.000184,2]
[425257851,1781635832000,-231.29270581,0.000184,2]
[425257854,1781635832000,-736.0,0.00018432,2]
[425257853,1781635832000,-948.815141,0.00018406,2]
[425257855,1781635832000,-336.68666307,0.00018599,2]
[425257863,1781635832000,-9136.6472792,0.000188,2]
[425257862,1781635832000,-1065.89003313,0.000188,2]
[425257857,1781635832000,-1065.89003313,0.000186,2]
[425257856,1781635832000,-9952.89156055,0.000186,2]
[425257859,1781635832000,-10166.23304835,0.000186,2]
[425257861,1781635832000,-9952.89156055,0.000188,2]
[425257858,1781635832000,-9136.6472792,0.000186,2]
[425257860,1781635832000,-900.0,0.00018679,2]
[425257873,1781635832000,-9136.6472792,0.000192,2]
[425257872,1781635832000,-1065.89003313,0.000192,2]
[425257868,1781635832000,-10166.23304835,0.00019,2]
[425257864,1781635832000,-10166.23304835,0.000188,2]
[425257874,1781635832000,-10166.23304835,0.000192,2]
[425257866,1781635832000,-1065.89003313,0.00019,2]
[425257867,1781635832000,-9136.6472792,0.00019,2]
[425257869,1781635832000,-20487.75,0.00019178,2]
[425257870,1781635832000,-500.0,0.00019199,2]
[425257877,1781635832000,-1065.89003313,0.000194,2]
[425257901,1781635832000,-10166.23304835,0.000199,2]
[425257957,1781635832000,-157.0,0.00021,2]
[425257905,1781635832000,-300.0,0.00019999,2]
[425257904,1781635832000,-300.0,0.00019999,2]
[425257937,1781635832000,-150.0,0.0002058,2]
[425257939,1781635832000,-707.91454548,0.000206,2]
[425257942,1781635832000,-1361.24909636,0.000208,2]
[425257941,1781635832000,-707.91454548,0.000208,2]
[425257943,1781635832000,-8804.98395199,0.000208,2]
[425257944,1781635832000,-10166.23304835,0.00021,2]
[425257935,1781635832000,-150.0,0.0002058,2]
[425257945,1781635832000,-807.87065074,0.00021,2]
[425257956,1781635832000,-677.0,0.00021,2]
[425257946,1781635832000,-840.670909,0.00021,2]
[425257948,1781635832000,-173.0,0.00021,2]
[425257947,1781635832000,-184.0,0.00021,2]
[425257953,1781635832000,-394.0,0.00021,2]
[425257949,1781635832000,-751.0,0.00021,2]
[425257950,1781635832000,-1267.0,0.00021,2]
[425257952,1781635832000,-153.0,0.00021,2]
[425257955,1781635832000,-198.0,0.00021,2]
[425257954,1781635832000,-189.0,0.00021,2]
[425257951,1781635832000,-158.0,0.00021,2]
[425257959,1781635832000,-158.0,0.00021,2]
[425257958,1781635832000,-364.0,0.00021,2]
[425257960,1781635832000,-3115.21044073,0.000212,2]
[425257962,1781635832000,-1079.96336635,0.000212,2]
[425257961,1781635832000,-2287.51677326,0.000212,2]
[425257936,1781635832000,-150.0,0.0002058,2]
[425257938,1781635832000,-173.72555532,0.0002058,2]
[425257940,1781635832000,-174.72,0.00020706,2]
[425257930,1781635832000,-300.0,0.00020236,2]
[425257906,1781635832000,-500.0,0.00019999,2]
[425257907,1781635832000,-707.91454548,0.0002,2]
[425257909,1781635832000,-840.670909,0.0002,2]
[425257910,1781635832000,-184.0,0.0002,2]
[425257912,1781635832000,-751.0,0.0002,2]